Cogmind - Beta 16 @@@ ROGUE MODE // 2025.11.26 @ 13:52:42 Player: cptwinky Result: Destroyed by S-10 Pest with Light Assault Rifle Performance ------------- Evolutions (0) 0 Regions Visited (3) 600 Robots Destroyed (26) 130 Value Destroyed (630) 630 Prototype IDs (12) 240 Alien Tech Used (0) 0 Bonus (-44) -44 TOTAL SCORE: 1556 Bonus ------- Friendly Fire -44 Cogmind --------- Core Integrity 0/250 Matter 300/300 Energy 100/100 System Corruption 0% Temperature Cool (0) Movement Rolling (110) Location -10/Subcaves Parts ------- > --- POWER (1) -------- (None) > --- PROPULSION (2) --- Light Treads Subdweller Monowheel > --- UTILITY (2) ------ Medium Storage Unit Seismic Detector > --- WEAPON (2) ------- Small Laser Battle Cannon > --- INVENTORY (10) --- High-capacity Matter Pod (200) Subdweller Optics Scrap Shield Small Laser Powered Cannon Subdweller Machine Gun Datajack Mining Laser Peak State ------------ > --- POWER ------------ Ion Engine > --- PROPULSION ------- Light Treads Light Treads > --- UTILITY ---------- Medium Storage Unit Seismic Detector > --- WEAPON ----------- Small Laser Subdweller Machine Gun > --- INVENTORY -------- Subdweller Monowheel High-capacity Matter Pod Scrap Shield Powered Cannon Datajack Mining Laser [Rating: 10] Favorites ----------- Power Ion Engine Engine Ion Engine Propulsion Light Treads Treads Light Treads Wheel Subdweller Monowheel Utility Medium Storage Unit Device Seismic Detector Storage Medium Storage Unit Protection Light Armor Plating Weapon Small Laser Energy Gun Small Laser Ballistic Gun Assault Rifle Ballistic Cannon Light Cannon Special Weapon Mining Laser Build | -11 -10 -10 -10 ------- Run | Yrd Mat Min Sub Slots Evolved . | . . . . Power . | . . . . Propulsion . | . . . . Utility . | . . . . Weapon . | . . . . Parts Attached 22 | 6 7 . 9 Power 3 | 1 1 . 1 Engine 3 | 1 1 . 1 Core . | . . . . Reactor . | . . . . Propulsion 5 | 2 1 . 2 Treads 4 | 2 1 . 1 Leg . | . . . . Wheel 1 | . . . 1 Hover . | . . . . Flight . | . . . . Utility 5 | 1 3 . 1 Device 1 | . . . 1 Storage 2 | 1 1 . . Processor . | . . . . Hackware . | . . . . Protection 2 | . 2 . . Artifact . | . . . . Weapon 9 | 2 2 . 5 Energy Gun 4 | 1 2 . 1 Energy Cannon . | . . . . Ballistic Gun 2 | 1 . . 1 Ballistic Cannon 2 | . . . 2 Launcher . | . . . . Special Weapon 1 | . . . 1 Impact Weapon . | . . . . Slashing Weapon . | . . . . Piercing Weapon . | . . . . Special Melee Weapon . | . . . . Unidentified Prototypes . | . . . . Parts Lost 9 | . 3 . 6 Power 2 | . 1 . 1 Propulsion 2 | . . . 2 Utility 2 | . 1 . 1 Weapon 3 | . 1 . 2 Highest Loss Streak 4 | . 2 . 4 To Critical Strikes . | . . . . Average Backups 8 | 2 7 10 8 Power . | . . 1 . Propulsion 1 | . 1 2 1 Utility 2 | . 1 2 2 Weapon 3 | . 2 4 3 Tool/Special . | . . . . Unused Backups 10 | . 2 . 8 Power . | . . . . Propulsion 1 | . . . 1 Utility 3 | . . . 3 Weapon 5 | . 2 . 3 Tool/Special 1 | . . . 1 Average Slot Usage (%) 93 | . 93 100 91 Engine 11 | . 14 14 10 Treads 25 | . 28 28 24 Wheel 2 | . . . 3 Device 3 | . . . 6 Storage 14 | . 14 14 14 Protection 7 | . 7 14 4 Energy Gun 19 | . 19 28 16 Ballistic Gun 3 | . 8 . 2 Ballistic Cannon 1 | . . . 3 Special Weapon 2 | . . . 5 Peak Build Rating 10 | 6 8 8 10 Average Rating 7 | 5 6 8 8 On Entrance 5 | . 6 8 8 Avg Prop Armor Cover (%) 14 | . . . 14 Naked Turns . | . . . . Heaviest Build 22 | 14 20 20 22 Greatest Support 40 | 40 40 40 40 Greatest Overweight (x) . | . . . . Average Overweight (x) . | . . . . Largest Inventory Capacity 10 | 8 10 10 10 Average Capacity 9 | 7 9 10 10 Most Carried 10 | 4 10 10 10 Average Carried 8 | 2 7 10 9 Final Capacity 10 | 8 10 10 10 Final Carried 10 | 4 10 10 10 Class Distribution -------------------- 90% | Mutant 9% | Scavenger-Mutant Dominant Class ---------------- Mutant | -10/Materials Mutant | -10/Mines Mutant | -10/Subcaves Resources | -11 -10 -10 -10 ----------- Run | Yrd Mat Min Sub Matter Collected 913 | 256 256 . 401 Remotely . | . . . . Salvage Created 869 | 54 557 . 258 Parts 53 | 4 26 . 23 Haulers Intercepted 2 | . 2 . . Recyclers Shooed 1 | . 1 . . Parts Field Recycled . | . . . . Retrieved Matter . | . . . . Parts Self-Destructed 12 | . . . 12 Prevented . | . . . . Parts Restored . | . . . . Kills | -11 -10 -10 -10 ------- Run | Yrd Mat Min Sub Combat Hostiles Destroyed 21 | . 13 . 8 Guns 18 | . 13 . 5 Cannons 3 | . . . 3 Classes Destroyed 8 | 1 4 . 3 Tunneler 2 | 2 . . . Hauler 2 | . 2 . . Recycler 1 | . 1 . . Swarmer 7 | . 6 . 1 Grunt 7 | . 7 . . Sentry 1 | . . . 1 Artisan 1 | . . . 1 Subdweller 6 | . . . 6 Best Kill Streak 4 | 2 4 . 2 Combat Bots Only 3 | . 3 . 2 Max Kills in Single Turn 1 | 1 1 . 1 Gunslinging . | . . . . Exploded . | . . . . Melee . | . . . . Uniques/NPCs Destroyed . | . . . . Combat | -11 -10 -10 -10 -------- Run | Yrd Mat Min Sub Hostile Shots Fired 122 | . 63 . 59 Missed 25 | . 17 . 8 Hits 97 | . 46 . 51 Projectile 97 | . 46 . 51 Critical Strikes 5 | . . . 5 Damage Taken 1559 | . 469 . 1090 Core 252 | . 56 . 196 Absorbed by Shields . | . . . . Redirected to Shielding 32 | . 32 . . Core Remaining (%) 100 | 100 . . . Volleys Fired 107 | 8 50 . 49 Largest 2 | 2 2 . 2 Hottest 100 | 70 90 . 100 Shots Fired 199 | 16 100 . 83 Gun 165 | 16 100 . 49 Cannon 21 | . . . 21 Launcher . | . . . . Special 13 | . . . 13 Kinetic 82 | 8 47 . 27 Thermal 117 | 8 53 . 56 Explosive . | . . . . Electromagnetic . | . . . . Robot Hit Streak 13 | 9 12 . 13 Robot Miss Streak 6 | 1 6 . 1 Penetration Max . | . . . . Secondary Targets 2 | . 2 . . Max Gunslinging Chain 1 | . 1 . . Shots Hit Robots 131 | 14 61 . 56 Core Hits 47 | 2 27 1 17 Critical Kills . | . . . . Critical Parts Destroyed . | . . . . Critical Strikes 2 | . 1 . 1 Burn 1 | . 1 . . Destroy 1 | . . . 1 Melee Attacks . | . . . . Impact . | . . . . Slashing . | . . . . Piercing . | . . . . Sneak Attacks . | . . . . Combat Hostiles . | . . . . Follow-up Attacks . | . . . . Damage Inflicted 1800 | 174 806 16 804 Guns 1444 | 174 763 . 507 Cannons 297 | . . . 297 Explosions . | . . . . Melee . | . . . . Ramming 59 | . 43 16 . Kinetic 902 | 89 392 . 421 Thermal 839 | 85 371 . 383 Explosive . | . . . . Electromagnetic . | . . . . Impact . | . . . . Slashing . | . . . . Piercing . | . . . . Highest Corruption . | . . . . Average Corruption . | . . . . Corruption Purged . | . . . . Corruption Blocked . | . . . . Overload Shots . | . . . . Overflow Damage . | . . . . Projectiles . | . . . . Explosions . | . . . . Melee . | . . . . Knockbacks 5 | . 2 1 2 Impact 3 | . 2 1 . Kinetic 2 | . . . 2 Secondary . | . . . . Self-Inflicted Damage . | . . . . Shots . | . . . . Rammed 9 | . 7 2 . Targets Rammed 10 | . 8 2 . Kicked . | . . . . Crushed 1 | . 1 . . Highest Temperature 432 | 45 159 . 432 Average Temperature 69 | 19 51 . 226 Received Heat Transfer 897 | . 159 . 738 Effects 1 | . . . 1 Damage (major) 1 | . . . 1 Siege Activations . | . . . . Martial Activations . | . . . . Shielding Activations . | . . . . Robots Disrupted . | . . . . Combat Hostiles . | . . . . Robots Corrupted . | . . . . Combat Hostiles . | . . . . Parts Fried . | . . . . Impact Corruptions . | . . . . Robots Melted . | . . . . Combat Hostiles . | . . . . Parts Melted . | . . . . Heat Transferred 2269 | 259 1160 . 850 Parts Sabotaged . | . . . . Parts Stolen . | . . . . Parts Stripped . | . . . . Power Chain Reactions . | . . . . Alert | -11 -10 -10 -10 ------- Run | Yrd Mat Min Sub Maximum Alert Level . | . . . . Low Security (%) 100 | 100 100 100 . Level 1 . | . . . . Level 2 . | . . . . Level 3 . | . . . . Level 4 . | . . . . Level 5 . | . . . . High Security . | . . . . Max Security . | . . . . Peak Influence 166 | 5 166 14 . Initial 14 | . . 14 . Average 42 | 1 81 . . Influence Increases 434 | 10 384 . 40 Destroy 0b10 Robot/C 300 | . 260 . 40 Destroy 0b10 Robot/NC 25 | 10 15 . . Destroy Leader 44 | . 44 . . Successful Hack 4 | . 4 . . Select Force Hacks 30 | . 30 . . Destroy Structure 1 | . 1 . . Lose Combat Pursuer 30 | . 30 . . Influence Decreases 434 | 10 346 38 40 Entered New Map 24 | . . 24 . Time Decay 380 | 10 316 14 40 Lost Part 30 | . 30 . . Squads Dispatched 1 | . 1 . . Investigation 1 | . 1 . . Extermination . | . . . . Reinforcement . | . . . . Assault . | . . . . Garrison . | . . . . Intercept . | . . . . Searches Triggered . | . . . . Construction Impeded . | . . . . Haulers Reinforced . | . . . . Active Scanning Responses . | . . . . Cargo Convoy Interrupts . | . . . . Stealth | -11 -10 -10 -10 --------- Run | Yrd Mat Min Sub Distress Signals 2 | . 2 . . Communications Jammed . | . . . . Distress Signals . | . . . . Times Spotted 34 | . 24 . 10 Peak Tracking Total 5 | . 5 . 2 Tactical Retreats 1 | . 1 . . Traps | -11 -10 -10 -10 ------- Run | Yrd Mat Min Sub Traps Triggered 3 | . . . 3 Indirectly . | . . . . Trap Hack Attempts . | . . . . Triggered . | . . . . Disarmed . | . . . . Reprogrammed . | . . . . Reused . | . . . . Traps Extracted . | . . . . Installed . | . . . . Triggered . | . . . . Machines | -11 -10 -10 -10 ---------- Run | Yrd Mat Min Sub Machines Disabled 1 | . . . 1 Max in Single Turn 1 | . . . 1 Machines Repaired . | . . . . Machines Dismantled . | . . . . Machines Sabotaged . | . . . . Overloaded Fab Kills . | . . . . Hacking | -11 -10 -10 -10 --------- Run | Yrd Mat Min Sub Machines Accessed 6 | . 4 . 2 Terminals 3 | . 3 . . Fabricators . | . . . . Repair Stations . | . . . . Recycling Units 1 | . 1 . . Scanalyzers . | . . . . Garrison Access . | . . . . Total Hacks 16 | . 10 . 6 Successful 11 | . 5 . 6 Failed 5 | . 5 . . Catastrophic 1 | . 1 . . Database Lockouts . | . . . . Manual 7 | . 7 . . Terminals 7 | . 7 . . Fabricators . | . . . . Repair Stations . | . . . . Recycling Units 3 | . 3 . . Scanalyzers . | . . . . Garrison Access . | . . . . Terminal Hacks 9 | . 3 . 6 Record 5 | . . . 5 Robot Analysis 2 | . 2 . . Locate Traps 1 | . 1 . . Proto ID Catalog 1 | . . . 1 Fabricator Hacks . | . . . . Repair Station Hacks . | . . . . Recycling Unit Hacks 1 | . 1 . . Retrieve Components 1 | . 1 . . Scanalyzer . | . . . . Garrison Access Hacks . | . . . . Unauthorized Hacks 1 | . 1 . . Terminals . | . . . . Fabricators . | . . . . Repair Stations . | . . . . Recycling Units 1 | . 1 . . Tunnel 1 | . 1 . . Scanalyzers . | . . . . Garrison Access . | . . . . Data Cores Recovered . | . . . . Used . | . . . . Hacking Detections 4 | . 4 . . Full Trace Events . | . . . . Feedback Events . | . . . . Feedback Blocked . | . . . . Robot Schematics Acquired . | . . . . Robots Built . | . . . . Authchips . | . . . . Time . | . . . . Total Robot Build Rating . | . . . . Part Schematics Acquired . | . . . . Parts Built . | . . . . Authchips . | . . . . Time . | . . . . Total Part Build Rating . | . . . . Part Studies Acquired . | . . . . Parts Repaired . | . . . . Time . | . . . . Parts Recycled . | . . . . Recycled Matter . | . . . . Retrieved Matter . | . . . . Retrieved Components 2 | . 2 . . Parts Scanalyzed . | . . . . Part Schematics Acquired . | . . . . Parts Damaged . | . . . . Bothacking | -11 -10 -10 -10 ------------ Run | Yrd Mat Min Sub Used RIF Installer . | . . . . Robots Hacked . | . . . . Non-combat . | . . . . Combat . | . . . . Robot Hacks Applied . | . . . . Relay Couplers Released . | . . . . Fabnet Peak Effective % . | . . . . Robots Rewired . | . . . . Allies Hacked . | . . . . Hacks Repelled . | . . . . Allies | -11 -10 -10 -10 -------- Run | Yrd Mat Min Sub Total Allies . | . . . . Largest Group . | . . . . Highest-Rated Group . | . . . . Highest-Rated Ally . | . . . . Total Orders . | . . . . Ally Attacks . | . . . . Total Damage . | . . . . Kills . | . . . . Allies Corrupted . | . . . . Allies Melted . | . . . . Intel | -11 -10 -10 -10 ------- Run | Yrd Mat Min Sub Active Infowar (turns) 947 | . . . 947 Seismic 947 | . . . 947 Robot Analysis Total 2 | . 2 . . Derelict Logs Recovered 2 | . . 1 1 Drone Launches . | . . . . Drone Recoveries . | . . . . Exploration | -11 -10 -10 -10 ------------- Run | Yrd Mat Min Sub Turns Passed 3866 | 121 913 725 2107 Spaces Moved 1986 | 52 372 452 1110 Core 3 | 3 . . . Treads 1482 | 49 372 452 609 Legs . | . . . . Wheels 501 | . . . 501 Hover . | . . . . Flight . | . . . . Fastest Speed 50 | 50 160 160 110 Average Speed 147 | 153 160 160 137 Slowest Speed 160 | 160 160 160 160 Overloaded Moves . | . . . . Propulsion Burnouts . | . . . . Robots Hopped . | . . . . Potential Cave-ins . | . . . . Cave-ins Triggered . | . . . . Exploration Rate (%) 46 | 4 52 69 62 Regions Visited 3 Branch Regions 2 Pre-discovered Areas 1 | . 1 . . Known Exits Taken . | . . . . Unknown Exits Taken 3 | 1 1 1 . Scrap Searched . | . . . . Spaces Dug . | . . . . Terrain Destroyed . | . . . . Melee . | . . . . Projectile . | . . . . AOE . | . . . . Terrain Rammed . | . . . . Walls Destroyed . | . . . . Machines Disabled . | . . . . Actions | -11 -10 -10 -10 --------- Run | Yrd Mat Min Sub Total 2689 | 74 586 453 1576 Wait 523 | 5 133 . 385 Move 1983 | 51 371 451 1110 Hop . | . . . . Pick Up 22 | 4 11 . 7 Fast Attach 10 | 6 3 . 1 Attach 7 | . 2 . 5 Detach 1 | . 1 . . Swap 14 | . 2 . 12 Drop 10 | . 5 . 5 Fire 107 | 8 50 . 49 Melee . | . . . . Ram . | . . . . Kick . | . . . . Crush 10 | . 8 2 . Escape Stasis . | . . . . Rewire 2 | . . . 2 Trap . | . . . . Miscellaneous . | . . . . Route ------- -11/Scrapyard -10/Materials (discovered 2 exits: *Mat / [*Min]) -10/Mines (discovered 2 exits: Mat / *Sub) -10/Subcaves (discovered 4 exits: *Mat x2 / Rec / [Scr]) History --------- Turn | Location | Event 12 | -11/Scrapyard | Discovered new exit (range 16) 122 | -11/Scrapyard | Entered Materials 308 | -10/Materials | Build established: Mutant 720 | -10/Materials | Discovered new exit (range 16) 849 | -10/Materials | Discovered new exit (range 13) 1035 | -10/Materials | Entered Mines 1451 | -10/Mines | Discovered new exit (range 8) 1453 | -10/Mines | Identified exit to Materials 1760 | -10/Mines | Entered Subcaves 1761 | -10/Subcaves | Approached by a straggling Scientist 1821 | -10/Subcaves | Discovered new exit (range 13) 1868 | -10/Subcaves | Scientist uncovered a shortcut to Scraptown 1888 | -10/Subcaves | Visited Clippyterm 1893 | -10/Subcaves | Identified exit to Recycling 1893 | -10/Subcaves | Identified exit to Materials 1893 | -10/Subcaves | Learned Research security intel 1922 | -10/Subcaves | Learned Materials terminal intel 2128 | -10/Subcaves | Ambushed by Subdwellers from Twisted Machinery 3049 | -10/Subcaves | Visited 4L-MR0's lab 3068 | -10/Subcaves | Found Powered Cannon 3257 | -10/Subcaves | Core integrity fell below 50% 3275 | -10/Subcaves | Core integrity fell below 20% 3304 | -10/Subcaves | Lost 4 parts (1p1n2w) 3867 | -10/Subcaves | Destroyed by S-10 Pest with Light Assault Rifle Last Messages --------------- 03302_ Acquired 8 matter. 03305_ Acquired 10 matter. 03309_ Acquired 4 matter. 03341_ Acquired 38 matter. 03373_ Acquired Sub. Optics. 03437_ A6-BBU(u) deconstructs Twisted Machinery. 03481_ Acquired Sml. Laser. 03482_ Acquired 32 matter. 03491_ Acquired 3 matter. 03632_ Attempting to rewire 17-AG4(R). 03632_ 17-AG4(R) is broken beyond repair. 03633_ Attempting to rewire 17-AG4(R). 03633_ 17-AG4(R) is broken beyond repair. 03648_ Acquired 11 matter. 03701_ Dropped Sub. Machine Gun. 03702_ Acquired Battle Cannon. 03712_ Subatomizers dissect the Sub. Machine Gun, destroying it. 03712_ Acquired 13 matter. 03720_ Acquired 7 matter. Map ----- +----------------------------------------------------+ | ## #?????????????????????????????????? | | ### #????????????????????????????????? | | # #??####????????????????????????????????? | | # ### #??????????????????????????????????????? | | ## ### ##??????????????????????????????????????? | | ?## ## #???????????????????????????????????????? | | ??#### ##??????????????????????????????????????? | | ####### #??????????????????????????????????????? | | # ##??????????????????????????????????????? | | ###????????????????????????????????????? | | #### # ##???????????????????????????????????? | | ???#### #???????????????????????????????????? | | ?????## #???????????????????????????????????? | | ????## #???????????????????????????????????? | | ##### #???????????????????????????????????? | | ### #???????????????????????????????????? | | #?## ##???????????????????????????????????? | | #?### ##????????????????????????????????????? | | ### #???????######????????????????????????? | | ## ##??????## % ##???????????????????????? | | ##??????# ##??????????????????????? | | ##?????# ###????????????????????? | | ##????# ##????## ?????????? | | #????# ### ????????? | | ##?????# ????????? | | ##?###???# @ s ????????? | | ## #?## ###?## ## s ????????? | | ## &%#### ##?# ###??????? ????????? | | ## # ### #????# ?????????????????? | | ## ##???# ?????????????????? | | #### # #???? ???# ???????????? | | ##?## #### # ###???? #??# #?????????? | | ##??# ## #?????? ### ##????????? | | ???## ## ##?????? ?????????? | | #### ### ### ##??????? ?????????? | | ##?## #?###???????? ??????????? | | ####### #?###???????? ???????????? | | #####?## ### ##??????? #????????????? | | ##?????# #??????? ##???????????? | | #????## ##???????# ????????????? | | ####### ### #???????## ??????????????? | | # #?## #??###??# #???????????????? | | #??# #### #?## #????????????????? | | #??# ### #????????????????? | | # # # ##??# #????????????????? | | ####### ##???# ##????????????????? | | ??????###????## ##### #### #?????????????????? | | ??????????????######???###??####?????????????????? | | ?????????????????????????????????????????????????? | | ?????????????????????????????????????????????????? | +----------------------------------------------------+ Best States ------------- Heat Dissipation 25 Energy Generation 10 Energy Capacity 250 Matter Stores 300 Matter Capacity 300 Sight Range 16 Terrain Scan Density 10 Armor Coverage 150 Weapon Shielding 33 Evasion (%) 40 Recoil Reduction 2 Item Schematics ----------------- None Robot Schematics ------------------ None Fabricated ------------ Nothing Repaired ---------- Nothing Studied --------- None Alien Tech Used ----------------- None Achievements -------------- None Challenges ------------ None Game ------ Seed ShieldPortableInverter Manual? 0 Play Time 00:18:06 Cumulative 2047.0 hours Start 2025.11.26 @ 13:40:22 End 2025.11.26 @ 13:52:42 Sessions 1 Manual Loads 0 Difficulty Rogue Special Mode None Game No. 1323 Rogue 1319 Adventurer 4 Explorer 0 Win Type - Total 276 Types 206/13/21/10/3/1/4/10/5/3 Lore% 98 Gallery% 96 Achievement% 86 Wizard Run 0 Options --------- Layout 2 ASCII 0 Keyboard 1 Movement Vi Keybinds 0 Fullscreen 0 Font 24/Terminus Map View 59x48 Zoom Use 0% Tactical HUD 1 Map Filters NONE Filters NONE Steam 1 RUN: a5f9e5c1-c331-4e2c-9a55-cc56e35916da